[Event "WR Chess Masters-TB 2023"]
[Site "Duesseldorf"]
[Date "2023.02.25"]
[Round "2"]
[White "Gukesh D"]
[Black "Aronian, Levon"]
[Result "0-1"]
[ECO "C65"]
[WhiteElo "2718"]
[BlackElo "2736"]
[Annotator "TA"]
[PlyCount "184"]
[EventDate "2023.02.16"]
[EventCountry "GER"]
[SourceTitle "playchess.com"]
[Source "ChessBase"]
[SourceQuality "1"]
[TimeControl "600+2"]

{[%evp 44,184,8,18,29,0,0,0,0,0,0,0,0,0,118,124,127,110,128,130,133,102,143,135,135,108,116,111,135,127,125,135,131,31,29,39,36,24,14,37,70,0,0,0,0,0,0,-8,-8,-8,0,0,-8,-16,-16,-201,-85,-201,-8,-8,-8,-8,-8,-201,-201,-201,-201,-201,-201,-201,-201,-29969,-29963,-29966,-15,-29971,-29972,-29971,-29973,-29972,-29971,-4019,-201,-201,-201,-201,-201,-201,-201,-29970,-29966,-29959,-201,-201,-201,-201,-201,-201,-201,-201,0,-201,0,-29966,-29967,-29969,-29970,-29970,-29971,-29974,-201,-201,-201,-201,0,-208,0,-29974,-29975,-29975,-29976,-29976,-29977,-29979,-29979,-29979,-29979,-29979,-29978,-29978,-29979,-29983,-29979,-29979,-29980,-29986,-29978,-29978,-29979,-29984,-29985,-29986,-29987]} 1. e4 {[%emt 0:00:02]} e5 {[%emt 0:00:01]} 2. Nf3 {[%emt 0:00:02]} Nc6 {[%emt 0:00:04]} 3. Bb5 {[%emt 0:00:01]} Nf6 {[%emt 0:00:02]} 4. d3 {[%emt 0:00:02]} Bc5 {[%emt 0:00:02]} 5. Bg5 {[%emt 0:00:01]} h6 {[%emt 0:00:11]} 6. Bh4 {[%emt 0:00:02]} Ne7 {[%emt 0:00:08]} 7. Bxf6 {[%emt 0:00:44]} gxf6 {[%emt 0:00:02]} 8. d4 {[%emt 0:00:41]} exd4 {[%emt 0:00:04]} 9. Nbd2 {[%emt 0:00:02]} c6 {[%emt 0:00:17]} 10. Bc4 {[%emt 0:00:01]} b5 {[%emt 0:00:49]} 11. Bd3 {[%emt 0:00:07]} d6 {[%emt 0:00:14]} 12. a4 {[%emt 0:00:04]} b4 {[%emt 0:00:48]} 13. Nb3 {[%emt 0:00:01]} Bg4 {[%emt 0:00:09]} 14. Be2 {[%emt 0:00:01]} Bxf3 {[%emt 0:00:48]} 15. Bxf3 {[%emt 0:00:01]} a5 {[%emt 0:00:01]} 16. Nxd4 {[%emt 0:00:35]} Qb6 {[%emt 0:00:01]} 17. c3 {[%emt 0:00:01]} bxc3 {[%emt 0:00:01]} 18. bxc3 {[%emt 0:00:00]} Bxd4 {[%emt 0:00:04]} 19. cxd4 {[%emt 0:00:01]} Qb4+ {[%emt 0:00:03]} 20. Kf1 {[%emt 0:00:02]} Rb8 {[%emt 0:00:15]} 21. g3 {[%emt 0:02:29]} Qb3 {[%emt 0:00:02]} 22. Kg2 {[%emt 0:00:59]} Qxd1 {[%emt 0:00:02]} 23. Rhxd1 {[%emt 0:00:02]} Kd7 {[%emt 0:00:07]} 24. Bg4+ {[%emt 0:00:01]} Kc7 $1 {[%emt 0:00:02]} 25. Rd3 {[%emt 0:00:01]} h5 {[%emt 0:00:33]} 26. Bd1 {[%emt 0:00:01]} Rb4 {[%emt 0:00:09]} 27. h4 {[%emt 0:00:01]} f5 {[%emt 0:00:15]} 28. exf5 {[%emt 0:00:33]} Nxf5 {[%emt 0:00:01]} (28... d5 $11) 29. d5 $1 $16 {[%emt 0:00:06]} c5 {[%emt 0:00:14]} 30. Rf3 {[%emt 0:00:05]} Nd4 {[%emt 0:00:00]} 31. Rxf7+ {[%emt 0:00:02]} Kb6 {[%emt 0:00:01]} 32. Rd7 {[%emt 0:00:41]} c4 {[%emt 0:00:02]} 33. Rxd6+ {[%emt 0:00:02]} Kc5 {[%emt 0:00:00]} 34. Rd7 $1 {[%emt 0:00:01]} Rb2 {[%emt 0:00:40]} 35. Rc1 {[%emt 0:00:34]} Rf8 {[%emt 0:00:47]} 36. Bxh5 {[%emt 0:00:01]} Rfxf2+ {[%emt 0:00:17]} 37. Kh3 {[%emt 0:00:01]} Nf5 {[%emt 0:00:23]} 38. Kg4 {[%emt 0:01:14]} (38. Ra7 $1 $16) 38... Ne3+ $14 {[%emt 0:00:19]} 39. Kg5 {[%emt 0:00:01]} Rf5+ {[%emt 0:00:01]} 40. Kg6 {[%emt 0:00:12]} Rg2 {[%emt 0:00:54]} 41. g4 {[%emt 0:00:01]} Rxd5 {[%emt 0:00:00]} 42. Rc7+ {[%emt 0:01:10]} (42. Rxd5+ $14 Nxd5 43. Kg5) 42... Kd6 $1 $11 {[%emt 0:00:24]} 43. R7xc4 {[%emt 0:00:01]} Nxc4 {[%emt 0:00:07]} 44. Rxc4 {[%emt 0:00:01]} Rb2 {[%emt 0:00:13]} 45. g5 {[%emt 0:00:29]} Rb4 {[%emt 0:00:01]} 46. Be2 {[%emt 0:00:07]} Rxc4 {[%emt 0:00:10]} (46... Rd2 $5 47. Bf1 $8 Rxc4 {[%mdl 64] Remove Defender} 48. Bxc4 Rd4 $11) 47. Bxc4 {[%emt 0:00:01]} Rd4 {[%emt 0:00:00]} 48. Bb5 {[%emt 0:00:05]} Rxh4 {[%emt 0:00:03]} 49. Kg7 $2 {[%emt 0:00:03]} (49. Kf5 $11 {and White stays safe.}) 49... Ke7 {[%emt 0:00:07]} (49... Ke6 $19 50. Bc6 Rc4) 50. g6 {[%emt 0:00:01]} (50. Kg6 $17) 50... Rb4 $2 {[%emt 0:00:19]} ({Worse is} 50... Rg4 51. Bc6 $17) (50... Rd4 $19 {...Rh4 is the strong threat.} 51. Bc6 Rg4) 51. Bc6 $1 $11 {[%emt 0:00:02]} Rc4 {[%emt 0:00:10]} 52. Bb5 $1 {[%emt 0:00:01]} Rc7 {[%emt 0:00:04]} ({Of course not} 52... Rg4 $6 53. Bc6 $17) 53. Bd3 $2 {[%emt 0:00:01]} (53. Kh7 $11) 53... Ke6+ $19 {[%emt 0:00:10]} 54. Kf8 {[%emt 0:00:03]} Kf6 {[%emt 0:00:06]} 55. Ke8 {[%emt 0:00:01]} Rc1 {[%emt 0:00:11]} 56. Bb5 {[%emt 0:00:04]} Rd1 $1 {[%emt 0:00:06]} ({Weaker is} 56... Kxg6 57. Kd7 $11) 57. Bd7 $2 {[%emt 0:00:03]} (57. g7 $19 Kxg7 58. Ke7) 57... Kxg6 {[%emt 0:00:05]} 58. Kd8 {[%emt 0:00:01]} Rc1 $2 {[%emt 0:00:06]} (58... Kf6 $1 59. Kc7 Ke5 60. Bh3 Rd6 61. Bg2 Rg6 62. Bc6 Re6 63. Bf3 Kd4 64. Bg4 Rf6 65. Kd8 Rh6 66. Ke8 Kc5 67. Kf7 Rb6 68. Ke7 Kb4 69. Bd1 Rg6 70. Bh5 Rg5 71. Bd1 Rg1 72. Bc2 Rc1 73. Bf5 Kxa4 74. Bd7+ Kb4 75. Ke6 Rc7 76. Be8 Ra7 77. Bh5 a4 78. Bf3 Kc5 79. Ke5 a3 80. Bd5 Re7+ 81. Be6 a2 82. Kf6 Rxe6+ {[%mdl 64] Promotion} 83. Kxe6 a1=Q 84. Kf5 Kd5 85. Kf4 Qc3 86. Kg5 Qe5+ 87. Kh4 Qg7 88. Kh3 Ke4 89. Kh4 Kf4 90. Kh5 Qh7#) 59. Bb5 $2 {[%emt 0:00:03][%mdl 8192]} (59. Ke7 $11) 59... Kf6 {[%emt 0:00:02]} 60. Kd7 {[%emt 0:00:01]} Ke5 $1 {[%emt 0:00:02]} 61. Bc6 {[%emt 0:00:01]} Kd4 {[%emt 0:00:02]} 62. Kd6 {[%emt 0:00:04]} Kc4 $2 {[%emt 0:00:04]} (62... Rf1 {( -> ...Rf6+)} 63. Ke6 Kc5) 63. Bb5+ $19 {[%emt 0:00:01]} Kb4 {[%emt 0:00:00]} 64. Kd5 {[%emt 0:00:02]} Rd1+ {[%emt 0:00:03]} 65. Ke4 {[%emt 0:00:01]} Kc3 {[%emt 0:00:03]} 66. Ke5 $2 {[%emt 0:00:03]} (66. Bc6 $19) 66... Rd4 {[%emt 0:00:03]} 67. Be8 {[%emt 0:00:03] [#]} Rh4 $2 {[%emt 0:00:04]} (67... Kc4 $1 68. Bc6 Kc5 69. Be8 Rb4 70. Kf6 Rb6+ 71. Kg5 Rb8 72. Bd7 Kd6 73. Bf5 Rb4 74. Bc2 Kc5 75. Kf6 Rb2 76. Bd3 Kb4 77. Kg7 Kxa4 78. Be4 Kb4 79. Bc6 Rd2 80. Kg8 a4 81. Bxa4 Kxa4 82. Kf7 Rd6 83. Ke7 Rb6 84. Kf7 Kb5 85. Ke7 Kc5 86. Kf7 Rd6 87. Kg7 Kc6 88. Kg8 Kd7 89. Kf7 Re6 90. Kg8 Ke8 91. Kg7 Ke7 92. Kh8 Kf8 93. Kh7 Kf7 94. Kh8 Rh6#) 68. Bb5 $19 {[%emt 0:00:01]} Rh5+ {[%emt 0:00:12]} 69. Ke4 {[%emt 0:00:01]} Rc5 {[%emt 0:00:05]} 70. Bd7 {[%emt 0:00:02]} Kb4 {[%emt 0:00:02]} 71. Bb5 {[%emt 0:00:02]} Rc1 $2 {[%emt 0:00:04]} (71... Rc8 $19 72. Ke5 Rd8) 72. Kd3 $2 {[%emt 0:00:01]} (72. Kd5 $1 $11 {and White has nothing to worry.} Rd1+ 73. Ke5) 72... Rd1+ $2 {[%emt 0:00:01]} (72... Rf1 $19 {And now ...Rf2 would win.} 73. Kd4 Rf4+ 74. Ke5 Rf2) 73. Kc2 $2 {[%emt 0:00:03][%mdl 8192]} (73. Ke4 $11 Kc5 74. Ke3) 73... Rd8 {[%emt 0:00:02]} 74. Kb2 {[%emt 0:00:05]} Rd2+ {[%emt 0:00:01]} 75. Kc1 {[%emt 0:00:01] [#]} Kc3 $1 {[%emt 0:00:01]} 76. Kb1 {[%emt 0:00:02]} Rb2+ $2 {[%emt 0:00:03]} (76... Kb3 {mates} 77. Kc1 Rd8 78. Be2 Kxa4 79. Bg4 Rd6 80. Bf5 Kb4 81. Bh7 Rd8 82. Bf5 Re8 83. Kd2 a4 84. Bb1 Rf8 85. Kd3 Rf3+ 86. Ke4 Rb3 87. Ba2 Ka3 88. Bxb3 axb3 89. Kd3 b2 90. Ke3 b1=Q 91. Kf3 Qf5+ 92. Kg2 Kb4 93. Kh2 Kc5 94. Kg2 Kd4 95. Kh2 Ke3 96. Kg2 Qg6+ 97. Kh3 Kf3 98. Kh4 Qh6#) 77. Kc1 $19 {[%emt 0:00:02]} Rb4 {[%emt 0:00:02]} 78. Kd1 {[%emt 0:00:03]} Rb2 {[%emt 0:00:04]} 79. Kc1 $1 {[%emt 0:00:02]} Rd2 $2 {[%emt 0:00:01]} (79... Ra2 $19 80. Kd1 Kd4) 80. Kb1 $1 {[%emt 0:00:01]} Kb3 {[%emt 0:00:02]} 81. Kc1 {[%emt 0:00:00]} Rd8 {[%emt 0:00:01]} 82. Be2 {[%emt 0:00:05]} Kxa4 {[%emt 0:00:03]} 83. Kb1 {[%emt 0:00:02]} Kb3 {[%emt 0:00:02]} 84. Bg4 {[%emt 0:00:01]} Rd6 {[%emt 0:00:06]} 85. Bh5 {[%emt 0:00:01]} Rf6 {[%emt 0:00:05]} 86. Bd1+ {[%emt 0:00:01]} Ka3 {[%emt 0:00:02]} 87. Bh5 {[%emt 0:00:03]} Rb6+ {[%emt 0:00:04]} 88. Kc2 {[%emt 0:00:01]} Rb2+ {[%emt 0:00:02]} 89. Kc1 {[%emt 0:00:03]} Rb4 {[%emt 0:00:01]} 90. Bf7 {[%emt 0:00:03]} Ka4 {[%emt 0:00:03]} 91. Be8+ {[%emt 0:00:03]} Kb3 {[%emt 0:00:01]} 92. Bf7+ {[%emt 0:00:02]} Kc3 {[%emt 0:00:02]} 0-1